bitfinex-derivatives/quotes_SOLF0:USTF0_20241216
["timestamp","ask_amount","ask_price","bid_price","bid_amount"]
[1734351305212,0.51516,214.9,214.89,2.3275]
[1734351305624,0.51516,214.9,214.89,4.8675]
[1734351305914,4.5831,215.0,214.95,2.3268]
[1734351305915,6.9095,215.0,214.95,2.3268]
[1734351306116,6.9095,215.0,214.95,9.65398977]
[1734351307115,4.6342,215.0,214.95,9.65398977]
[1734351308124,4.6342,215.0,214.95,2.3268]
[1734351308823,2.3265,214.99,214.95,2.3268]
[1734351309023,2.3265,214.99,214.83,2.54]
[1734351309024,2.54,214.98,214.83,2.54]
[1734351309212,11.4344981,214.96,214.83,13.9744981]
[1734351309419,11.4344981,214.96,214.86,5.4567913]
[1734351309718,2.3112,214.95,214.86,5.4567913]
[1734351309914,2.3274,214.91,214.83,2.54]
[1734351310823,2.3274,214.9,214.85,7.87809366]
[1734351311716,2.3112,214.95,214.84,2.3281]
[1734351312217,2.3276,214.88,214.83,2.3282]
[1734351312418,11.4344981,214.9,214.78,11.4344981]
[1734351312614,2.2928,214.89,214.78,11.4344981]
[1734351312819,2.3281,214.84,214.79,2.3286]
[1734351313220,2.2928,214.89,214.78,11.4344981]
[1734351313720,2.328,214.86,214.81,2.3283]
[1734351313923,4.8328,214.89,214.78,11.4344981]
[1734351314223,4.8328,214.89,214.79,5.57120388]
[1734351314825,4.8328,214.89,214.78,11.4344981]
[1734351314826,2.3282,214.84,214.78,13.7631981]
[1734351315025,4.8328,214.89,214.78,13.7631981]
[1734351315528,2.3282,214.83,214.78,13.7631981]
[1734351315726,4.8328,214.89,214.78,2.3287]
[1734351315920,11.4344981,214.87,214.72,11.4344981]
[1734351316227,11.4344981,214.87,214.73,5.03429996]
[1734351316429,2.3286,214.8,214.75,2.329]
[1734351316625,2.54,214.83,214.75,2.329]
[1734351316927,2.3286,214.8,214.75,2.329]
[1734351318027,2.3102,214.82,214.76,2.3289]
[1734351318028,2.3284,214.81,214.76,2.3289]
[1734351318228,2.2729,214.86,214.75,11.4344981]
[1734351318425,66.0,215.02,214.78,11.4344981]
[1734351318426,2.3102,214.88,214.78,11.4344981]
[1734351318625,4.6379,214.88,214.81,11.4344981]
[1734351318927,2.3102,214.88,214.82,2.54]
[1734351319124,2.3282,214.83,214.78,2.3287]
[1734351319429,2.3282,214.83,214.76,13.9744981]
[1734351319430,2.3668,214.87,214.76,13.9744981]
[1734351320427,2.3668,214.87,214.77,5.04286231]
[1734351320631,2.3102,214.88,214.79,11.4344981]
[1734351320827,4.6379,214.88,214.82,2.3282]
[1734351322128,2.3278,214.87,214.82,2.3282]
[1734351322735,2.3102,214.88,214.81,2.54]
[1734351322926,4.6379,214.88,214.82,11.4344981]
[1734351323129,2.3277,214.88,214.82,11.4344981]
[1734351323435,2.4331,214.93,214.85,11.4344981]
[1734351324131,2.3274,214.91,214.86,2.3278]
[1734351324733,2.4331,214.93,214.85,11.4344981]
[1734351325030,2.3275,214.9,214.85,2.328]
[1734351325335,2.4331,214.93,214.85,2.328]
[1734351325532,2.3274,214.91,214.85,2.328]
[1734351325743,2.4331,214.93,214.82,11.4344981]
[1734351325935,2.4331,214.93,214.86,2.3278]
[1734351326430,2.3275,214.9,214.86,2.3278]
[1734351326633,2.4331,214.93,214.83,2.54]
[1734351327133,2.3275,214.9,214.83,2.54]
[1734351327330,2.3275,214.9,214.86,2.3279]
[1734351327929,2.4331,214.93,214.86,11.4344981]
[1734351328134,4.8306,214.96,214.86,11.4344981]
[1734351328329,4.8306,214.96,214.87,2.54]
[1734351328534,2.2906,214.96,214.87,2.54]
[1734351328745,2.327,214.94,214.9,2.3273]
[1734351329634,13.9212981,214.99,214.87,2.54]
[1734351329838,2.3269,214.95,214.91,2.3272]
[1734351330741,2.327,214.94,214.91,2.3272]
[1734351330937,2.4868,214.99,214.91,2.3272]
[1734351331140,2.3267,214.97,214.89,11.4344981]
[1734351332039,2.3268,214.96,214.89,11.4344981]
[1734351332235,2.4868,214.99,214.9,5.04863254]
[1734351332440,2.3267,214.97,214.93,2.327]
[1734351332837,2.3267,214.97,214.92,2.54]
[1734351333041,2.3267,214.97,214.94,2.327]
[1734351333833,4.5502,215.03,214.92,13.9744981]
[1734351334034,2.3266,214.99,214.96,2.3267]
[1734351334744,2.3263,215.01,214.95,11.4344981]
[1734351334942,2.2978,215.03,214.95,11.4344981]
[1734351335135,11.4344981,215.08,214.95,11.4344981]
[1734351335339,11.4344981,215.05,214.92,13.9744981]
[1734351335536,2.54,215.04,214.92,11.4344981]
[1734351335755,2.54,215.04,214.94,2.327]
[1734351335756,2.3263,215.01,214.94,2.327]
[1734351335941,2.54,215.04,214.94,2.327]
[1734351336949,2.54,215.04,214.93,4.8671]
[1734351337145,2.54,215.04,214.93,2.54]
[1734351337348,2.54,215.04,214.92,13.7616981]
[1734351337545,11.4344981,215.01,214.89,11.4344981]
[1734351337752,2.3273,214.92,214.87,5.56122373]
[1734351337943,2.3273,214.92,214.87,7.88892373]
[1734351338151,2.54,214.98,214.87,5.56122373]
[1734351338348,2.2498,214.99,214.87,5.56122373]
[1734351338547,2.2498,214.99,214.9,2.3274]
[1734351338949,2.3267,214.97,214.9,2.3274]
[1734351339151,2.2498,214.99,214.9,2.3274]
[1734351340445,2.3338,215.0,214.89,11.4344981]
[1734351340653,2.3338,215.0,214.92,11.4344981]
[1734351340844,2.3338,215.0,214.92,13.9744981]
[1734351341049,2.3338,215.0,214.94,2.327]
[1734351341549,4.9621,215.07,214.95,11.4344981]
[1734351341751,4.9621,215.07,214.99,2.3264]
[1734351342055,2.3261,215.03,214.99,2.3264]
[1734351342255,2.4221,215.07,214.99,2.3264]
[1734351343055,4.9621,215.07,214.99,2.3264]
[1734351343353,2.4221,215.07,214.98,11.4344981]
[1734351343556,2.3258,215.06,214.98,11.4344981]
[1734351344052,2.3258,215.06,215.02,2.326]
[1734351344258,2.4221,215.07,215.01,11.4344981]
[1734351344259,4.7477,215.07,215.01,11.4344981]
[1734351344558,2.4221,215.07,215.01,11.4344981]
[1734351344952,2.4221,215.07,214.98,11.4344981]
[1734351345555,2.4221,215.07,214.99,2.54]
[1734351345759,2.4221,215.07,215.01,2.3262]
[1734351347157,2.4221,215.07,215.02,2.3261]
[1734351347954,0.37394,215.15,215.04,11.4344981]
[1734351348154,4.6381,215.14,215.05,2.54]
[1734351348856,2.3253,215.1,215.05,2.54]
[1734351349060,4.6381,215.14,215.05,2.54]
[1734351349557,2.3252,215.11,215.07,2.3256]
[1734351350059,2.3253,215.1,215.06,2.3257]
[1734351350359,4.6381,215.14,215.05,2.54]
[1734351351359,2.3252,215.11,215.06,2.3257]
[1734351352756,2.3252,215.11,215.05,2.54]
[1734351352961,2.3252,215.11,215.06,2.3257]
[1734351353957,0.37394,215.15,215.07,11.4344981]
[1734351354360,0.37394,215.15,215.05,2.54]
[1734351354559,2.3253,215.1,215.03,11.4344981]
[1734351354863,0.37394,215.15,215.04,2.54]
[1734351355363,0.37394,215.15,215.05,2.3257]
[1734351355876,2.3252,215.11,215.06,4.8657]
[1734351357559,0.37394,215.15,215.07,2.3255]
[1734351358067,0.37394,215.15,215.06,2.54]
[1734351358661,2.3252,215.11,215.06,4.8657]
[1734351359063,0.37394,215.15,215.06,4.8657]
[1734351359269,2.3252,215.11,215.06,4.8657]
[1734351359868,0.37394,215.15,215.06,4.8657]
[1734351360066,0.37394,215.15,215.06,2.3257]
[1734351360263,0.37394,215.15,215.07,2.3256]
[1734351360669,2.3251,215.12,215.07,2.3256]
[1734351360967,2.3251,215.12,215.08,2.3254]
[1734351361967,0.37394,215.15,215.09,11.4344981]
[1734351362170,0.37394,215.15,215.12,11.4344981]
[1734351362466,0.37394,215.15,215.13,2.54]
[1734351362862,0.37394,215.15,215.12,2.54]
[1734351363067,0.37394,215.15,215.12,4.865]
[1734351363672,0.37394,215.15,215.14,2.3248]
[1734351366278,2.3241,215.21,215.16,2.3245]
[1734351366574,2.3241,215.21,215.17,13.9744981]
[1734351366771,2.324,215.23,215.17,13.9744981]
[1734351367277,2.2296,215.26,215.18,2.3244]
[1734351367580,2.2296,215.26,215.17,13.9744981]
[1734351367772,2.3237,215.25,215.21,2.3241]
[1734351368178,11.4344981,215.38,215.07,6.9926]
[1734351368179,249.1843532,215.46,215.28,2.3233]
[1734351368372,2.2324,215.35,215.28,11.4344981]
[1734351369469,2.2324,215.35,215.27,2.54]
[1734351369470,13.6668981,215.35,215.22,11.4344981]
[1734351369672,11.4344981,215.31,215.19,11.4344981]
[1734351369978,11.4344981,215.31,215.19,13.9744981]
[1734351370173,2.3233,215.28,215.23,2.3238]
[1734351370369,18.5775981,215.34,215.22,11.4344981]
[1734351370882,2.3232,215.29,215.22,11.4344981]
[1734351371178,2.3232,215.29,215.19,2.54]
[1734351371179,18.5775981,215.34,215.19,13.9744981]
[1734351371780,18.5775981,215.34,215.23,2.3238]
[1734351371781,2.3234,215.28,215.23,2.3238]
[1734351371975,11.4344981,215.31,215.19,11.4344981]
[1734351372171,0.62466,215.26,215.19,11.4344981]
[1734351372373,0.62466,215.26,215.22,2.3239]
[1734351372577,0.62466,215.26,215.19,11.4344981]
[1734351373078,2.3238,215.24,215.19,13.7586981]
[1734351373278,0.62466,215.26,215.19,11.4344981]
[1734351374481,0.62466,215.26,215.2,2.54]
[1734351375185,0.62466,215.26,215.19,11.4344981]
[1734351375388,2.4713,215.25,215.19,11.4344981]
[1734351376588,2.3239,215.23,215.19,13.7587981]
[1734351376978,2.4713,215.25,215.19,13.7587981]
[1734351377286,2.3238,215.24,215.19,13.7587981]
[1734351379082,2.3238,215.24,215.2,2.54]
[1734351379283,4.795,215.25,215.2,4.8642]
[1734351379682,2.3237,215.25,215.2,4.8642]
[1734351380488,0.62466,215.26,215.23,2.3238]
[1734351380786,0.62466,215.26,215.22,11.4344981]
[1734351380987,0.62466,215.26,215.24,2.3237]
[1734351381285,0.62466,215.26,215.22,11.4344981]
[1734351381477,0.62466,215.26,215.25,11.4344981]
[1734351382080,0.62466,215.26,215.25,9.8367857]
[1734351383084,0.62466,215.26,215.25,7.2967857]
[1734351383286,0.62466,215.26,215.22,2.3239]
[1734351383583,0.62466,215.26,215.25,7.2967857]
[1734351386997,0.62466,215.26,215.25,9.6203857]
[1734351387691,0.62466,215.26,215.25,7.2967857]
[1734351388793,0.62466,215.26,215.23,2.3238]
[1734351388995,0.62466,215.26,215.25,7.2967857]
[1734351389299,0.62466,215.26,215.22,7.2967857]
[1734351390593,0.62466,215.26,215.19,2.54]
[1734351390895,0.62466,215.26,215.22,7.2967857]
[1734351391492,0.62466,215.26,215.2,7.2967857]
[1734351391796,2.1825,215.25,215.2,7.2967857]
[1734351392399,2.324,215.23,215.2,7.2967857]
[1734351392600,2.1825,215.25,215.2,7.2967857]
[1734351393002,2.324,215.22,215.2,7.2967857]
[1734351393201,2.1825,215.25,215.2,7.2967857]
[1734351393498,2.1825,215.25,215.16,9.8367857]
[1734351393499,2.3243,215.19,215.16,9.8367857]
[1734351393707,9.5494857,215.24,215.16,9.8367857]
[1734351394103,9.5494857,215.24,215.06,4.6514]
[1734351394104,7.2967857,215.22,215.05,2.3519]
[1734351394299,9.8367857,215.22,215.15,7.2967857]
[1734351395204,2.3245,215.18,215.15,7.2967857]
[1734351396308,7.2967857,215.2,215.14,7.2967857]
[1734351396906,2.3247,215.16,215.14,7.2967857]
[1734351397206,9.8367857,215.22,215.14,7.2967857]
[1734351397704,2.54,215.22,215.15,7.2967857]
[1734351397902,2.3246,215.17,215.15,7.2967857]
[1734351398302,2.2527,215.24,215.15,7.2967857]
[1734351398504,2.2527,215.24,215.2,7.2967857]
[1734351398900,2.3241,215.21,215.2,7.2967857]
[1734351399098,9.5494857,215.24,215.18,7.2967857]
[1734351399306,7.2967857,215.22,215.15,7.2967857]
[1734351399507,2.3246,215.16,215.15,7.2967857]
[1734351399905,2.3246,215.17,215.15,7.2967857]
[1734351400111,2.3246,215.17,215.13,2.3249]
[1734351402314,2.3246,215.17,215.12,11.41462069]
[1734351402511,2.54,215.22,215.13,5.04768584]
[1734351402713,2.54,215.22,215.09,11.41462069]
[1734351402714,13.95462069,215.22,215.09,11.41462069]
[1734351403012,2.3251,215.12,215.09,11.41462069]
[1734351403317,2.3251,215.12,215.1,5.0500156]
[1734351403511,2.3251,215.12,215.07,8.00343812]
[1734351403816,2.3251,215.12,215.08,5.04947426]
[1734351404009,2.3251,215.12,215.09,5.04947426]
[1734351404216,2.325,215.13,215.07,8.00343812]
[1734351404419,11.41462069,215.19,215.08,7.37695921]
[1734351404715,11.41462069,215.19,215.09,5.05155921]
[1734351404915,11.41462069,215.19,215.03,11.41462069]
[1734351405117,11.41462069,215.19,215.04,5.05089266]
[1734351405414,11.41462069,215.19,215.05,5.05089266]
[1734351405618,2.54,215.22,215.06,7.37659266]
[1734351405619,2.3254,215.1,215.06,7.37659266]
[1734351405813,2.54,215.14,215.07,5.05089266]
[1734351406117,2.2527,215.24,215.08,5.05089266]
[1734351406118,2.54,215.18,215.08,5.05089266]
[1734351406317,2.54,215.18,215.09,5.05089266]
[1734351406616,2.325,215.13,215.06,11.41462069]
[1734351406919,4.6223,215.17,215.07,5.05036087]
[1734351407121,4.6223,215.17,215.08,5.05036087]
[1734351407326,4.6223,215.17,215.09,5.05036087]
[1734351407511,4.6223,215.17,215.08,2.3255]
[1734351407715,4.6223,215.17,215.09,5.05012923]
[1734351407920,2.3248,215.15,215.08,2.3255]
[1734351408120,4.6223,215.17,215.07,2.3256]
[1734351408313,4.6223,215.17,215.08,5.0502527]
[1734351408314,2.2605,215.16,215.08,5.0502527]
[1734351408619,11.41462069,215.15,215.0,2.54]
[1734351408815,2.54,215.14,215.03,2.3259]
[1734351409017,2.3256,215.08,215.04,5.05009867]
[1734351409313,2.3256,215.08,215.03,2.3259]
[1734351409520,2.54,215.14,215.03,2.3259]
[1734351409921,11.41462069,215.12,215.0,5.71122734]
[1734351410216,11.41462069,215.12,215.01,5.04808083]
[1734351410417,11.41462069,215.09,215.0,2.3263]
[1734351410619,7.1841,215.08,215.01,5.04500702]
[1734351410924,2.3262,215.02,214.98,2.3265]
[1734351411119,2.3262,215.02,214.99,5.04517446]
[1734351411314,2.3262,215.02,214.98,2.3265]
[1734351411516,2.3262,215.02,214.99,5.04197878]
[1734351411722,2.3262,215.02,214.98,2.3265]
[1734351411921,2.3262,215.02,214.99,5.04197526]
[1734351412127,2.3262,215.02,214.98,2.3265]
[1734351412318,2.3262,215.02,214.99,5.04197922]
[1734351412619,7.0091,215.08,215.0,11.41462069]
[1734351412620,2.2541,215.08,215.0,11.41462069]
[1734351412819,2.2541,215.08,215.01,2.54]
[1734351413117,2.3257,215.07,215.02,7.36453978]
[1734351413423,2.2541,215.08,215.02,2.3261]
[1734351414522,2.2541,215.08,214.99,2.3264]
[1734351415615,2.2541,215.08,214.97,11.41462069]
[1734351415822,4.6038,215.07,214.94,13.95462069]
[1734351416523,2.3263,215.01,214.96,2.3267]
[1734351416926,2.3263,215.01,214.96,7.79936969]
[1734351417730,2.3263,215.01,214.97,2.3266]
[1734351420122,2.3264,215.0,214.96,7.79946969]
[1734351421029,2.3266,214.98,214.94,13.74152069]
[1734351421225,4.6038,215.07,214.97,11.41462069]
[1734351421727,2.326,215.03,214.99,2.3264]
[1734351422527,2.2541,215.08,215.0,11.41462069]
[1734351422825,2.3525,215.12,215.0,11.41462069]
[1734351423026,4.8925,215.12,215.0,11.41462069]
[1734351423227,2.3254,215.09,215.03,2.326]
[1734351423429,4.8925,215.12,215.03,2.326]
[1734351423731,4.8925,215.12,215.0,11.41462069]
[1734351423927,16.30712069,215.12,215.0,11.41462069]
[1734351424733,16.30712069,215.12,214.97,11.41462069]
[1734351425025,16.30712069,215.12,214.94,11.41462069]
[1734351425026,11.41462069,215.06,214.94,11.41462069]
[1734351425230,6.9837,215.05,214.94,11.41462069]
[1734351425431,2.3265,214.99,214.94,11.41462069]
[1734351425829,6.9837,215.05,214.94,11.41462069]
[1734351426131,2.3238,215.04,214.94,11.41462069]
[1734351426327,2.3267,214.97,214.94,11.41462069]
[1734351426534,2.3267,214.97,214.91,11.41462069]
[1734351426734,2.3238,215.04,214.91,11.41462069]
[1734351426935,2.3265,214.99,214.93,2.3271]
[1734351427129,2.3238,215.04,214.93,2.3271]
[1734351428530,2.3266,214.98,214.91,16.98666354]
[1734351428835,2.3266,214.98,214.94,2.327]
[1734351429427,2.3266,214.98,214.91,16.98666354]
[1734351429428,2.3266,214.98,214.93,2.327]
[1734351429934,2.3263,215.01,214.92,2.3271]
[1734351430133,2.3238,215.04,214.91,16.98666354]
[1734351430535,2.3266,214.98,214.93,2.327]
[1734351430735,2.3238,215.04,214.91,16.98666354]
[1734351431233,9.93710004,215.05,214.97,11.41462069]
[1734351431637,4.4437,215.05,214.97,11.41462069]
[1734351432339,2.2245,215.05,214.97,11.41462069]
[1734351432839,7.9019805,215.11,214.97,11.41462069]
[1734351433033,2.3298,215.11,215.03,11.41462069]
[1734351433234,2.3254,215.1,215.05,2.3257]
[1734351434541,2.3254,215.09,215.05,2.3257]
[1734351434740,2.3262,215.12,215.03,13.74052069]
[1734351435336,2.3262,215.12,215.03,11.41462069]
[1734351435539,2.3255,215.08,215.04,2.3259]
[1734351436842,2.3256,215.07,215.03,13.74062069]
[1734351437439,2.3262,215.12,215.03,13.74062069]
[1734351437643,2.3254,215.09,215.04,2.3259]
[1734351437944,2.3262,215.12,215.01,2.54]
[1734351438146,2.3262,215.12,215.02,5.0329013]
[1734351438341,2.3262,215.12,215.01,2.54]
[1734351438542,2.3262,215.12,215.02,5.03537655]
[1734351438740,2.3262,215.12,215.03,5.03537655]
[1734351438939,2.3262,215.12,215.01,2.54]
[1734351439246,2.3262,215.12,215.02,7.36164216]
[1734351439542,2.3257,215.07,215.03,5.03554216]
[1734351439744,2.3262,215.12,215.02,7.84903403]
[1734351439940,2.3262,215.12,215.03,5.0373876]
[1734351440138,2.3257,215.06,215.01,2.54]
[1734351440338,2.3257,215.06,215.02,5.03793248]
[1734351440541,2.3257,215.06,215.03,5.03793248]
[1734351440742,13.74082069,215.12,214.97,11.41462069]
[1734351440939,11.41462069,215.09,214.98,7.57976679]
[1734351441142,2.54,215.08,214.99,5.03976679]
[1734351441343,2.3259,215.04,215.0,7.36606679]
[1734351441563,2.3259,215.04,214.98,2.54]
[1734351441564,2.54,215.08,214.98,2.54]
[1734351441847,2.3262,215.02,215.01,5.04091267]
[1734351442147,2.54,215.08,214.94,13.95462069]
[1734351442448,11.41462069,215.06,214.95,7.36951213]
[1734351442747,2.54,215.08,214.96,5.04261213]
[1734351442947,2.3264,215.0,214.97,5.04261213]
[1734351443150,2.3264,215.0,214.96,2.3268]
[1734351443343,2.3264,215.0,214.97,5.04393562]
[1734351443547,2.3266,214.98,214.94,2.327]
[1734351443745,2.3266,214.98,214.95,5.04416512]
[1734351443945,2.3266,214.98,214.94,2.327]
[1734351444146,2.3266,214.98,214.95,5.04430184]
[1734351444349,2.3266,214.98,214.94,2.327]
[1734351444550,2.3266,214.98,214.95,5.04611149]
[1734351444750,2.3266,214.98,214.94,2.327]
[1734351444973,2.3266,214.98,214.95,5.04611346]
[1734351445155,2.3266,214.98,214.95,5.04611345]
[1734351445352,2.54,215.03,214.91,16.98666354]
[1734351445353,11.41462069,215.02,214.91,16.98666354]
[1734351445554,16.13112069,215.02,214.92,5.04734523]
[1734351445755,11.41462069,214.99,214.88,13.95462069]
[1734351446056,2.3271,214.93,214.89,5.04768958]
[1734351446349,2.3271,214.93,214.9,5.04768958]
[1734351446555,2.3271,214.93,214.91,5.04850826]
[1734351446757,2.54,214.98,214.85,13.62712069]
[1734351446958,2.3273,214.92,214.87,2.3278]
[1734351447157,2.54,214.98,214.88,5.04880325]
[1734351447455,2.3274,214.9,214.89,5.04880325]
[1734351447655,11.41462069,214.96,214.85,2.52]
[1734351447861,2.3146,214.95,214.86,5.04908531]
[1734351448062,2.3146,214.95,214.87,5.04908531]
[1734351448263,2.3146,214.95,214.81,13.93462069]
[1734351448563,2.3146,214.95,214.82,5.0480428]
[1734351448755,0.3146,214.95,214.83,5.0480428]
[1734351448953,0.3146,214.95,214.84,5.0480428]
[1734351449158,0.3146,214.95,214.85,5.0480428]
[1734351449364,2.3276,214.89,214.86,5.0480428]
[1734351449559,2.3276,214.89,214.83,5.6665115]
[1734351449765,0.3146,214.95,214.84,5.04718694]
[1734351449766,2.52,214.93,214.84,5.04718694]
[1734351449964,13.93462069,214.93,214.85,5.04718694]
[1734351450164,2.1858,214.92,214.79,2.3694]
[1734351450360,2.3279,214.87,214.81,2.3284]
[1734351450664,4.512,214.92,214.82,5.04467205]
[1734351450858,2.3278,214.87,214.83,5.04467205]
[1734351451059,2.3278,214.87,214.81,2.3284]
[1734351451263,2.3278,214.87,214.82,5.04236881]
[1734351451480,2.3278,214.87,214.81,7.91908706]
[1734351451661,2.3275,214.89,214.82,5.04340972]
[1734351451855,4.512,214.92,214.81,7.91908706]
[1734351452256,11.41462069,214.9,214.82,5.04339503]
[1734351452477,11.41462069,214.84,214.7,11.41462069]
[1734351452766,11.41462069,214.84,214.71,5.04273838]
[1734351452767,2.3289,214.77,214.71,5.04273838]
[1734351452965,2.52,214.78,214.72,5.04273838]
[1734351453159,2.52,214.78,214.72,5.68571923]
[1734351453361,2.3293,214.73,214.67,11.41462069]
[1734351453566,2.3293,214.73,214.68,5.03837228]
[1734351453764,2.3293,214.73,214.69,5.03837228]
[1734351453969,2.3294,214.72,214.64,15.33242069]
[1734351454155,2.52,214.72,214.65,5.03883184]
[1734351454356,2.52,214.72,214.61,11.41462069]
[1734351454560,11.41462069,214.75,214.62,5.03204672]
[1734351454758,11.41462069,214.75,214.61,11.41462069]
[1734351454759,2.52,214.74,214.64,2.3302]
[1734351455366,2.52,214.74,214.61,13.74512069]
[1734351455667,2.52,214.74,214.62,5.02403102]
[1734351455866,2.52,214.74,214.52,3.9173]
[1734351455867,11.41462069,214.72,214.58,11.41462069]
[1734351456068,2.1675,214.73,214.61,5.47519875]
[1734351456464,2.3299,214.68,214.61,5.47519875]
[1734351456670,2.52,214.69,214.62,2.3304]
[1734351456860,2.52,214.69,214.61,5.47519875]
[1734351457066,2.1675,214.73,214.61,5.47519875]
[1734351457264,2.52,214.72,214.62,5.00952416]
[1734351457571,2.52,214.72,214.61,5.47519875]
[1734351457980,2.52,214.72,214.61,7.80569875]
[1734351458268,2.52,214.72,214.61,5.47519875]
[1734351459465,2.3298,214.68,214.61,5.47519875]
[1734351459766,2.52,214.67,214.61,5.47519875]
[1734351459963,2.52,214.67,214.56,20.87256914]
[1734351460173,2.52,214.67,214.56,18.35256914]
[1734351460367,2.52,214.67,214.6,5.52398353]
[1734351460568,2.52,214.67,214.57,2.3309]
[1734351460765,2.52,214.67,214.54,2.52]
[1734351460969,2.52,214.67,214.55,4.99542142]
[1734351461281,2.3307,214.6,214.54,2.3312]
[1734351461465,2.52,214.61,214.53,5.7270835]
[1734351461773,2.52,214.6,214.53,5.7270835]
[1734351461974,2.52,214.59,214.53,5.7270835]
[1734351462175,2.3311,214.57,214.53,5.7270835]
[1734351464078,2.52,214.59,214.51,2.3316]
[1734351464281,2.52,214.59,214.47,4.9754881]
[1734351464483,2.52,214.59,214.4,3.7587]
[1734351464484,2.52,214.59,214.44,2.54]
[1734351464786,2.52,214.59,214.45,4.97474855]
[1734351464982,2.52,214.59,214.42,20.89256914]
[1734351465184,2.52,214.59,214.43,4.97059425]
[1734351465385,2.3316,214.52,214.46,2.3322]
[1734351465887,4.6598,214.6,214.47,5.73004677]
[1734351466181,2.54,214.59,214.47,5.73004677]
[1734351466583,2.54,214.59,214.49,2.3319]
[1734351467383,2.3311,214.56,214.5,2.3318]
[1734351468886,4.6598,214.6,214.47,8.27004677]
[1734351469094,4.8708,214.59,214.53,2.3314]
[1734351469591,4.8708,214.59,214.47,8.27004677]
[1734351469592,2.54,214.59,214.47,8.27004677]
[1734351470189,2.2239,214.61,214.47,8.27004677]
[1734351470391,2.2467,214.68,214.5,18.35256914]
[1734351470689,2.2467,214.68,214.51,2.2176]
[1734351470690,2.54,214.67,214.51,2.2176]
[1734351470889,2.54,214.67,214.51,4.7576]
[1734351471093,2.3308,214.6,214.55,2.3312]
[1734351471295,2.54,214.62,214.51,4.7576]
[1734351471591,2.54,214.62,214.47,5.73004677]
[1734351471592,20.89256914,214.62,214.47,5.73004677]
[1734351471996,18.35256914,214.58,214.42,18.35256914]
[1734351472193,4.7036,214.57,214.42,18.35256914]
[1734351472490,4.7036,214.57,214.46,5.55876667]
[1734351473095,2.3318,214.51,214.46,7.89096667]
[1734351473998,9.1117,214.57,214.46,5.55876667]
[1734351474300,9.1117,214.57,214.47,2.3321]
[1734351474495,9.1117,214.57,214.46,5.55876667]
[1734351474700,6.5717,214.57,214.46,5.55876667]
[1734351474994,2.54,214.57,214.46,5.55876667]
[1734351475493,2.54,214.57,214.47,2.54]
[1734351475893,2.54,214.57,214.5,2.3317]
[1734351477400,2.3312,214.55,214.51,2.3316]
[1734351477703,2.52,214.61,214.5,18.35256914]
[1734351477998,2.3309,214.58,214.5,18.35256914]
[1734351478297,2.52,214.61,214.49,11.48041912]
[1734351478496,2.331,214.57,214.52,2.3315]
[1734351478697,11.48041912,214.62,214.49,11.48041912]
[1734351478698,2.52,214.61,214.49,11.48041912]
[1734351478998,14.00041912,214.62,214.49,11.48041912]
[1734351479399,11.48041912,214.63,214.49,11.48041912]
[1734351479599,2.52,214.62,214.49,11.48041912]
[1734351479795,2.3309,214.58,214.54,2.3313]
[1734351479999,2.3309,214.58,214.49,11.48041912]
[1734351480297,2.52,214.62,214.49,11.48041912]
[1734351480498,2.52,214.62,214.52,2.3316]
[1734351480895,2.52,214.62,214.49,11.48041912]
[1734351481095,2.52,214.62,214.54,2.3313]
[1734351481397,2.52,214.62,214.49,11.48041912]
[1734351481995,6.5692,214.65,214.52,11.48041912]
[1734351482299,6.5692,214.65,214.53,2.52]
[1734351482503,2.3305,214.62,214.57,2.3309]
[1734351483705,2.3306,214.61,214.57,2.3309]
[1734351485599,2.3305,214.63,214.58,2.3309]
[1734351485795,2.3305,214.63,214.55,11.48041912]
[1734351486200,2.3305,214.63,214.56,4.97907673]
[1734351486400,2.3305,214.63,214.58,11.48041912]